Workbook

Sheet Instructions

Sheet ITS Delay Worksheet (hidden)
A3: Project Information | D3: Daily System/Facility Data | E3: With Project | G3: Year | I3: Annual VHT Savings | J3: Value of Delay Savings (2013 $, '000s)
A4: Name: | D4: Year Open to Traffic? | E4: 2015 | G4: =E4 -> 2015 | H4: =IF(G4<2041,1,0) -> 1 | I4: =IF($G4<($G$4+$E$5),$E$17,0)*H4 -> 0 | J4: =I4*$B$18*$B$19/10^3 -> 0
A5: ID Number: | D5: Project Life (see MOSER page A.8.9) | E5: 10 | G5: =G4+1 -> 2016 | H5: =IF(G5<2041,1,0) -> 1 | I5: =IF($G5<($G$4+$E$5),$E$17,0)*H5 -> 0 | J5: =I5*$B$18*$B$19/10^3 -> 0
A6: New HOV? | B6: 1 | D6: AND | G6: 2017 | H6: 1 | I6: 0 | J6: 0
A7: Total Cost (2015 $, '000s) | D7: Annual PHT Reduction (IDAS) | G7: 2018 | H7: 1 | I7: 0 | J7: 0
A8: Federal Funding Req. (2015 $, '000s) | D8: IDAS Vehicle Occupancy | E8: 1.15 | G8: 2019 | H8: 1 | I8: 0 | J8: 0
G9: 2020 | H9: 1 | I9: 0 | J9: 0
A10: BCA Results | G10: 2021 | H10: 1 | I10: 0 | J10: 0
A11: Discounted Delay Benefits (2015 $, '000s) | B11: =NPV($B$17,J4:J29)/(1+$B$17)^(E4-B16+1) ->  | G11: 2022 | H11: 1 | I11: 0 | J11: 0
A12: Delay B/C Ratio | B12: =B11/B7 ->  | G12: 2023 | H12: 1 | I12: 0 | J12: 0
G13: 2024 | H13: 1 | I13: 0 | J13: 0
G14: =G13+1 -> 2025 | H14: 1 | I14: 0 | J14: 0
A15: Assumptions | G15: 2026 | H15: 1 | I15: 0 | J15: 0
A16: Base Year | B16: ='Assumed Values'!C5 -> 2015 | D16: Interim Calculations | E16: With Project | G16: 2027 | H16: 1 | I16: 0 | J16: 0
A17: Discount Rate | B17: ='Assumed Values'!C6 -> 3% and 7% | D17: Annual VHT Reduction (Vehicles) | E17: =E7/E8 -> 0 | G17: 2028 | H17: 1 | I17: 0 | J17: 0
A18: Vehicle Occupancy | B18: =IF(B6=2,2.1, 1.1) -> 1.1 | G18: 2029 | H18: 1 | I18: 0 | J18: 0
A19: Value of Travel Time (VoTT) | B19: ='Assumed Values'!C15 -> 16.1 | G19: 2030 | H19: 1 | I19: 0 | J19: 0
A20: Annual Days of Travel | B20: 260 | G20: 2031 | H20: 1 | I20: 0 | J20: 0
G21: 2032 | H21: 1 | I21: 0 | J21: 0
G22: 2033 | H22: 1 | I22: 0 | J22: 0
G23: 2034 | H23: 1 | I23: 0 | J23: 0
G24: 2035 | H24: 1 | I24: 0 | J24: 0
G25: 2036 | H25: 1 | I25: 0 | J25: =I25*$B$18*$B$19/10^3 -> 0
G26: 2037 | H26: 1 | I26: 0 | J26: 0
G27: 2038 | H27: 1 | I27: 0 | J27: 0
G28: 2039 | H28: 1 | I28: 0 | J28: 0
G29: 2040 | H29: 1 | I29: 0 | J29: 0
A51: Control Values
A52: NO
A53: YES

Sheet Emissions Reduction Worksheet (hidden)
A3: Project Information | D3: Emissions Reduction Estimates | E3: With Project | G3: Year | H3: VOC Reduced (tonnes/year) | I3: Value of VOC Savings (2013 $, '000s) | J3: NOx Reduced (tonnes/yr) | K3: Value of NOx Savings (2013 $, '000s)
A4: Name: | D4: Year Open to Traffic? | E4: 2015 | G4: =E4 -> 2015 | H4: =IF($G4<($G$4+$E$5),$E$17,0) -> 0 | I4: =H4*$B$20/10^3 -> 0 | J4: =IF($G4<($G$4+$E$5),$E$18,0) -> 0 | K4: =J4*$B$21/10^3 -> 0
A5: ID Number: | D5: Project Life (see MOSER page A.8.9) | E5: 10 | G5: =G4+1 -> 2016 | H5: 0 | I5: =H5*$B$20/10^3 -> 0 | J5: 0 | K5: =J5*$B$21/10^3 -> 0
A6: Bike/Ped or LCI? | B6: 2 | D6: AND | G6: 2017 | H6: 0 | I6: 0 | J6: 0 | K6: 0
A7: Total Cost (2015 $, '000s) | D7: VMT Reduced (Daily) | G7: 2018 | H7: 0 | I7: 0 | J7: 0 | K7: 0
A8: Federal Funding Req. (2015 $, '000s) | D8: OR | G8: 2019 | H8: 0 | I8: 0 | J8: 0 | K8: 0
D9: VOC Emissions Reduced (metric tons/yr) | G9: 2020 | H9: 0 | I9: 0 | J9: 0 | K9: 0
A10: BCA Results | D10: NOx Emissions Reduced (metric tons/yr) | G10: 2021 | H10: 0 | I10: 0 | J10: 0 | K10: 0
A11: Discounted Emissions Benefits (2015 $, '000s) | B11: =(NPV($B$17,K4:K24)+NPV($B$17,I4:I24))/(1+$B$17)^2 -> 0 | G11: 2022 | H11: 0 | I11: 0 | J11: 0 | K11: 0
A12: Delay B/C Ratio | B12: =B11/B7 ->  | G12: 2023 | H12: 0 | I12: 0 | J12: 0 | K12: 0
A13: Annualized Cost Effectiveness (2015 $, '000s/tonne) | B13: =B7*(B17/(1-(1+B17)^(-E5))/(SUM(H4:H29)+SUM(J4:J29))) ->  | G13: 2024 | H13: 0 | I13: 0 | J13: 0 | K13: 0
G14: =G13+1 -> 2025 | H14: 0 | I14: 0 | J14: 0 | K14: 0
A15: Assumptions | G15: 2026 | H15: 0 | I15: 0 | J15: 0 | K15: 0
A16: Base Year | B16: 2015 | D16: Interim Calculations | E16: With Project | G16: 2027 | H16: 0 | I16: 0 | J16: 0 | K16: 0
A17: Discount Rate | B17: 0.07 | D17: VOC Emissions Reduced (metric tons/yr) | E17: =IF(E9,E9,$E$7*B18*$B$22/10^6) -> 0 | G17: 2028 | H17: 0 | I17: 0 | J17: 0 | K17: 0
A18: VOC Emissions Factor (g/mi) | B18: =IF($B$6=2,'Assumed Values'!C21,0) -> 0.3234015 | D18: NOx Emissions Reduced (metric tons/yr) | E18: =IF(E10,E10,$E$7*B19*$B$22/10^6) -> 0 | G18: 2029 | H18: 0 | I18: 0 | J18: 0 | K18: 0
A19: Nox Emissions Factor (g/mi) | B19: =IF($B$6=2,'Assumed Values'!C22,0) -> 0.191063 | G19: 2030 | H19: 0 | I19: 0 | J19: 0 | K19: 0
A20: Volatile Organic Compounds (VOCs), $ / metric ton (2015 $) | B20: ='Assumed Values'!C19 -> 2083.154147 | G20: 2031 | H20: 0 | I20: 0 | J20: 0 | K20: 0
A21: Nitrogen oxides (NOx), $ / metric ton (2015 $) | B21: ='Assumed Values'!C20 -> 8208.60691 | G21: 2032 | H21: 0 | I21: 0 | J21: 0 | K21: 0
A22: Annual Days of Travel | B22: 260 | G22: 2033 | H22: 0 | I22: 0 | J22: 0 | K22: 0
G23: 2034 | H23: 0 | I23: 0 | J23: 0 | K23: 0
G24: 2035 | H24: 0 | I24: 0 | J24: 0 | K24: 0
G25: 2036 | H25: =IF($G25<($G$4+$E$5),$E$17,0) -> 0 | I25: =H25*$B$20/10^3 -> 0 | J25: =IF($G25<($G$4+$E$5),$E$18,0) -> 0 | K25: =J25*$B$21/10^3 -> 0
G26: 2037 | H26: 0 | I26: 0 | J26: 0 | K26: 0
G27: 2038 | H27: 0 | I27: 0 | J27: 0 | K27: 0
G28: 2039 | H28: 0 | I28: 0 | J28: 0 | K28: 0
G29: 2040 | H29: =IF($G29<($G$4+$E$5),$E$17,0) -> 0 | I29: 0 | J29: =IF($G29<($G$4+$E$5),$E$18,0) -> 0 | K29: 0
A53: Control Values
A54: NO
A55: YES

Sheet Inputs & Outputs
A3: INPUTS
A5: Project Identification
A6: Name: | D6: Import from Crash History Data Tab?
A7: Application ID Number:
A8: Sponsor ID Number (CSJ, etc.):
D9: Preventable Crash History | E9: Year 1 | F9: Year 2 | G9: Year 3 | H9: Average
A10: Improvement Information | D10: Death_Cnt | E10: 0 | F10: 0 | G10: 0 | H10: =AVERAGE(E10:G10) -> 0
A11: Year Open to Traffic? (Must be >=2018) | D11: Incap_Injry_Cnt | E11: 0 | F11: 0 | G11: 0 | H11: =AVERAGE(E11:G11) -> 0
A12: Appropriate Crash Reduction Factor (%): | D12: Nonincap_Injry_Cnt | E12: 0 | F12: 0 | G12: 0 | H12: =AVERAGE(E12:G12) -> 0
A13: Service Life (years): | D13: Poss_Injry_Cnt | E13: 0 | F13: 0 | G13: 0 | H13: 0
D14: Non_Injry_Cnt | E14: 0 | F14: 0 | G14: 0 | H14: 0
A15: Daily Travel Demand | B15: With Project | D15: Unkn_Injry_Cnt | E15: 0 | F15: 0 | G15: 0 | H15: 0
A16: 2018 Volume
A17: 2018 Capacity
A18: 2025 Volume
A19: 2025 Capacity
A20: 2040 Volume
A21: 2040 Capacity
A26: OUTPUTS
A28: Benefit Results
A29: Discounted Safety Benefits @ 7% (2015 $, '000s) | B29: =NPV(7%,Value_of_Delay_Savings__2015_____000s)/(1+7%)^(2018-2015-1) -> 
A30: Discounted Safety Benefits @ 3% (2015 $, '000s) | B30: =NPV(3%,Value_of_Delay_Savings__2015_____000s)/(1+3%)^(2018-2015-1) -> 

Sheet CRASH
A1: Crash_ID | B1: Crash_Fatal_Fl | C1: Cmv_Involv_Fl | D1: Schl_Bus_Fl | E1: Rr_Relat_Fl | F1: Medical_Advisory_Fl | G1: Amend_Supp_Fl | H1: Active_School_Zone_Fl | I1: Crash_Date | J1: Crash_Time | K1: Case_ID | L1: Rpt_CRIS_Cnty_ID | M1: Rpt_City_ID | N1: Rpt_Outside_City_Limit_Fl | O1: Thousand_Damage_Fl | P1: Rpt_Latitude | Q1: Rpt_Longitude | R1: Rpt_Rdwy_Sys_ID | S1: Rpt_Hwy_Num | T1: Rpt_Hwy_Sfx | U1: Rpt_Road_Part_ID | V1: Rpt_Block_Num | W1: Rpt_Street_Pfx | X1: Rpt_Street_Name | Y1: Rpt_Street_Sfx | Z1: Private_Dr_Fl | AA1: Toll_Road_Fl | AB1: Crash_Speed_Limit | AC1: Road_Constr_Zone_Fl | AD1: Road_Constr_Zone_Wrkr_Fl | AE1: At_Intrsct_Fl | AF1: Rpt_Sec_Rdwy_Sys_ID | AG1: Rpt_Sec_Hwy_Num | AH1: Rpt_Sec_Hwy_Sfx | AI1: Rpt_Sec_Road_Part_ID | AJ1: Rpt_Sec_Block_Num | AK1: Rpt_Sec_Street_Pfx | AL1: Rpt_Sec_Street_Name | AM1: Rpt_Sec_Street_Sfx | AN1: Rpt_Ref_Mark_Offset_Amt | AO1: Rpt_Ref_Mark_Dist_Uom | AP1: Rpt_Ref_Mark_Dir | AQ1: Rpt_Ref_Mark_Nbr | AR1: Rpt_CrossingNumber | AS1: Wthr_Cond_ID | AT1: Light_Cond_ID | AU1: Entr_Road_ID | AV1: Road_Type_ID | AW1: Road_Algn_ID | AX1: Surf_Cond_ID | AY1: Traffic_Cntl_ID | AZ1: Investigat_Agency_ID | BA1: Bridge_Detail_ID | BB1: Harm_Evnt_ID | BC1: Intrsct_Relat_ID | BD1: FHE_Collsn_ID | BE1: Obj_Struck_ID | BF1: Othr_Factr_ID | BG1: Road_Part_Adj_ID | BH1: Road_Cls_ID | BI1: Road_Relat_ID | BJ1: Phys_Featr_1_ID | BK1: Phys_Featr_2_ID | BL1: Cnty_ID | BM1: City_ID | BN1: Latitude | BO1: Longitude | BP1: Hwy_Sys | BQ1: Hwy_Nbr | BR1: Hwy_Sfx | BS1: Dfo | BT1: Street_Name | BU1: Street_Nbr | BV1: Control | BW1: Section | BX1: Milepoint | BY1: Ref_Mark_Nbr | BZ1: Ref_Mark_Displ | CA1: Hwy_Sys_2 | CB1: Hwy_Nbr_2 | CC1: Hwy_Sfx_2 | CD1: Street_Name_2 | CE1: Street_Nbr_2 | CF1: Control_2 | CG1: Section_2 | CH1: Milepoint_2 | CI1: Txdot_Rptable_Fl | CJ1: Onsys_Fl | CK1: Rural_Fl | CL1: Crash_Sev_ID | CM1: Pop_Group_ID | CN1: Located_Fl | CO1: Day_of_Week | CP1: Hwy_Dsgn_Lane_ID | CQ1: Hwy_Dsgn_Hrt_ID | CR1: Hp_Shldr_Left | CS1: Hp_Shldr_Right | CT1: Hp_Median_Width | CU1: Base_Type_ID | CV1: Nbr_Of_Lane | CW1: Row_Width_Usual | CX1: Roadbed_Width | CY1: Surf_Width | CZ1: Surf_Type_ID | DA1: Curb_Type_Left_ID | DB1: Curb_Type_Right_ID | DC1: Shldr_Type_Left_ID | DD1: Shldr_Width_Left | DE1: Shldr_Use_Left_ID | DF1: Shldr_Type_Right_ID | DG1: Shldr_Width_Right | DH1: Shldr_Use_Right_ID | DI1: Median_Type_ID | DJ1: Median_Width | DK1: Rural_Urban_Type_ID | DL1: Func_Sys_ID | DM1: Adt_Curnt_Amt | DN1: Adt_Curnt_Year | DO1: Adt_Adj_Curnt_Amt | DP1: Pct_Single_Trk_Adt | DQ1: Pct_Combo_Trk_Adt | DR1: Trk_Aadt_Pct | DS1: Curve_Type_ID | DT1: Curve_Lngth | DU1: Cd_Degr | DV1: Delta_Left_Right_ID | DW1: Dd_Degr | DX1: Feature_Crossed | DY1: Structure_Number | DZ1: I_R_Min_Vert_Clear | EA1: Approach_Width | EB1: Bridge_Median_ID | EC1: Bridge_Loading_Type_ID | ED1: Bridge_Loading_In_1000_Lbs | EE1: Bridge_Srvc_Type_On_ID | EF1: Bridge_Srvc_Type_Under_ID | EG1: Culvert_Type_ID | EH1: Roadway_Width | EI1: Deck_Width | EJ1: Bridge_Dir_Of_Traffic_ID | EK1: Bridge_Rte_Struct_Func_ID | EL1: Bridge_IR_Struct_Func_ID | EM1: CrossingNumber | EN1: RRCo | EO1: Poscrossing_ID | EP1: WDCode_ID | EQ1: Standstop | ER1: Yield | ES1: Incap_Injry_Cnt | ET1: Nonincap_Injry_Cnt | EU1: Poss_Injry_Cnt | EV1: Non_Injry_Cnt | EW1: Unkn_Injry_Cnt | EX1: Tot_Injry_Cnt | EY1: Death_Cnt | EZ1: Year
B2: N | C2: N | D2: N | E2: N | F2: N | G2: N | H2: N | N2: Y | O2: Y | R2: 15 | U2: 1 | Y2: RD | Z2: N | AA2: N | AB2: 45 | AC2: N | AD2: N | AE2: N | AF2: 15 | AS2: 11 | AT2: 3 | AU2: 0 | AW2: 1 | AX2: 1 | AY2: 1 | BA2: 8 | BB2: 2 | BC2: 4 | BD2: 30 | BE2: 64 | BF2: 54 | BG2: 1 | BH2: 4 | BI2: 1 | BJ2: 21 | BK2: 21 | BL2: 101 | BM2: 1666 | CI2: Y | CJ2: N | CK2: Y | CL2: 1 | CM2: 0 | CN2: Y | CO2: Sat | ES2: 1 | ET2: 0 | EU2: 0 | EV2: 3 | EW2: 0 | EX2: 1 | EY2: 0 | EZ2: 2013
B3: N | C3: N | D3: N | E3: N | F3: N | G3: N | H3: N | N3: Y | O3: Y | R3: 19 | U3: 1 | Y3: RD | Z3: N | AA3: N | AB3: 45 | AC3: N | AD3: N | AE3: N | AF3: 19 | AS3: 11 | AT3: 1 | AU3: 0 | AW3: 1 | AX3: 1 | AY3: 1 | BA3: 8 | BB3: 2 | BC3: 4 | BD3: 34 | BE3: 64 | BF3: 54 | BG3: 1 | BH3: 4 | BI3: 1 | BJ3: 21 | BK3: 21 | BL3: 101 | BM3: 1666 | CI3: Y | CJ3: N | CK3: Y | CL3: 5 | CM3: 0 | CN3: Y | CO3: Mon | ES3: 0 | ET3: 0 | EU3: 0 | EV3: 2 | EW3: 0 | EX3: 0 | EY3: 0 | EZ3: 2011
B4: N | C4: N | D4: N | E4: N | F4: N | G4: N | H4: N | N4: Y | O4: Y | R4: 19 | U4: 1 | Y4: RD | Z4: N | AA4: N | AB4: 45 | AC4: N | AD4: N | AE4: Y | AF4: 19 | AI4: 1 | AJ4: 8400 | AS4: 11 | AT4: 1 | AU4: 2 | AW4: 1 | AX4: 1 | AY4: 11 | BA4: 8 | BB4: 2 | BC4: 2 | BD4: 30 | BE4: 64 | BF4: 54 | BG4: 1 | BH4: 4 | BI4: 1 | BJ4: 21 | BK4: 21 | BL4: 101 | BM4: 1666 | CI4: Y | CJ4: N | CK4: Y | CL4: 2 | CM4: 0 | CN4: N | CO4: Sat | ES4: 0 | ET4: 3 | EU4: 0 | EV4: 0 | EW4: 0 | EX4: 3 | EY4: 0 | EZ4: 2012
B5: N | C5: N | D5: N | E5: N | F5: N | G5: N | H5: N | N5: Y | O5: Y | R5: 19 | U5: 1 | Y5: RD | Z5: N | AA5: N | AB5: 45 | AC5: N | AD5: N | AE5: Y | AF5: 19 | AI5: 1 | AJ5: 8400 | AS5: 12 | AT5: 1 | AU5: 2 | AW5: 1 | AX5: 2 | AY5: 11 | BA5: 8 | BB5: 2 | BC5: 2 | BD5: 22 | BE5: 64 | BF5: 47 | BG5: 1 | BH5: 4 | BI5: 1 | BJ5: 21 | BK5: 21 | BL5: 101 | BM5: 1666 | CI5: Y | CJ5: N | CK5: Y | CL5: 5 | CM5: 0 | CN5: N | CO5: Mon | ES5: 0 | ET5: 0 | EU5: 0 | EV5: 5 | EW5: 0 | EX5: 0 | EY5: 0 | EZ5: 2013

Sheet Calculations
A3: Assumptions | D3: Interim Calculations | M3: Year | N3: Demand Growth | O3: Facility V/C Ratio | P3: Benefit Cap | Q3: Potential Value of Crash Savings (2015 $) | R3: Use in Analysis? | S3: Value of Delay Savings (2015 $, '000s)
A4: Base Year | B4: 2015 | D4: 2018-2025 Demand Growth | E4: =(_2025_Volume/_2018_Volume)^(1/(2025-2018))-1 ->  | M4: 2018 | N4: n/a | O4: =MIN(E7,1) ->  | P4: =-(ROUNDUP(O4,0)-2) ->  | Q4: =SUMPRODUCT(Possible_Crash_Reductions,Value_of_Statistical_Life_2015) -> 0 | R4: =IF(AND(M4>=Year_Open_to_Traffic?,M4<Year_Open_to_Traffic?+Years_to_include_in_BCA_Analysis),1,0) -> 0 | S4: =(Q4*R4)/10^3 -> 0
A5: Years to include in BCA Analysis | B5: =MIN(20,Service_Life) -> 20 | D5: 2025-2040 Demand Growth | E5: =(_2040_Volume/_2025_Volume)^(1/(2040-2025))-1 ->  | M5: =M4+1 -> 2019 | N5: =IF(ISERROR(_2025_2040_Demand_Growth),_2018_2040_Demand_Growth,_2018_2025_Demand_Growth) ->  | O5: =O4*(1+IFERROR(_2018_2025_V_C_Growth,_2018_2040_V_C_Growth)) ->  | P5: =-(ROUNDUP(O5,0)-2) ->  | Q5: =Q4*(1+N5*P5) ->  | R5: 0 | S5: =(Q5*R5)/10^3 -> 
D6: 2018-2040 Demand Growth | E6: =(_2040_Volume/_2018_Volume)^(1/(2040-2018))-1 ->  | M6: 2020 | Q6: =Q5*(1+N6*P6) ->  | R6: 0
D7: 2018 V/C Ratio | E7: =_2018_Volume/_2018_Capacity ->  | M7: 2021 | R7: 0
D8: 2025 V/C Ratio | E8: =_2025_Volume/_2025_Capacity ->  | M8: 2022 | R8: 0
D9: 2040 V/C Ratio | E9: =_2040_Volume/_2040_Capacity ->  | M9: 2023 | R9: 0
D10: 2018-2025 V/C Growth | E10: =(E8/E7)^(1/(2025-2018))-1 ->  | M10: 2024 | R10: 0
D11: 2025-2040 V/C Growth | E11: =(E9/E8)^(1/(2040-2025))-1 ->  | M11: 2025 | R11: 0
D12: 2018-2040 V/C Growth | E12: =(E9/E7)^(1/(2040-2018))-1 ->  | M12: 2026 | N12: =IFERROR(_2025_2040_Demand_Growth,_2018_2040_Demand_Growth) ->  | O12: =O11*(1+IFERROR(_2025_2040_V_C_Growth,_2018_2040_V_C_Growth)) ->  | R12: 0
M13: 2027 | R13: 0
M14: =M13+1 -> 2028 | O14: =O13*(1+IFERROR(_2025_2040_V_C_Growth,_2018_2040_V_C_Growth)) ->  | Q14: =Q13*(1+N14*P14) ->  | R14: 0
A15: Crash Data on Abbreviated Injury Scale (AIS) | D15: Death_Cnt | E15: Incap_Injry_Cnt | F15: Nonincap_Injry_Cnt | G15: Poss_Injry_Cnt | H15: Non_Injry_Cnt | I15: Unkn_Injry_Cnt | J15: Sum | M15: =M14+1 -> 2029 | O15: =O14*(1+IFERROR(_2025_2040_V_C_Growth,_2018_2040_V_C_Growth)) ->  | Q15: =Q14*(1+N15*P15) ->  | R15: 0
D16: =Avg_Death_Cnt -> 0 | E16: =Avg_Incap_Injry_Cnt -> 0 | F16: =Avg_Nonincap_Injry_Cnt -> 0 | G16: =Avg_Poss_Injry_Cnt -> 0 | H16: =Avg_Non_Injry_Cnt -> 0 | I16: =Avg_Unkn_Injry_Cnt -> 0 | M16: 2030 | R16: 0
A17: AIS 0 | B17: No Injuries | D17: =D$16*'Value of Statistical Life'!D17*Appropriate_Crash_Reduction_Factor -> 0 | E17: =E$16*'Value of Statistical Life'!E17*Appropriate_Crash_Reduction_Factor -> 0 | F17: =F$16*'Value of Statistical Life'!F17*Appropriate_Crash_Reduction_Factor -> 0 | G17: =G$16*'Value of Statistical Life'!G17*Appropriate_Crash_Reduction_Factor -> 0 | H17: =H$16*'Value of Statistical Life'!H17*Appropriate_Crash_Reduction_Factor -> 0 | I17: =I$16*'Value of Statistical Life'!I17*Appropriate_Crash_Reduction_Factor -> 0 | J17: =SUM(D17:I17) -> 0 | M17: 2031 | R17: 0
A18: AIS 1 | B18: Minor | D18: =D$16*'Value of Statistical Life'!D18*Appropriate_Crash_Reduction_Factor -> 0 | E18: =E$16*'Value of Statistical Life'!E18*Appropriate_Crash_Reduction_Factor -> 0 | F18: =F$16*'Value of Statistical Life'!F18*Appropriate_Crash_Reduction_Factor -> 0 | G18: =G$16*'Value of Statistical Life'!G18*Appropriate_Crash_Reduction_Factor -> 0 | H18: =H$16*'Value of Statistical Life'!H18*Appropriate_Crash_Reduction_Factor -> 0 | I18: =I$16*'Value of Statistical Life'!I18*Appropriate_Crash_Reduction_Factor -> 0 | J18: =SUM(D18:I18) -> 0 | M18: 2032 | R18: 0
A19: AIS 2 | B19: Moderate | D19: =D$16*'Value of Statistical Life'!D19*Appropriate_Crash_Reduction_Factor -> 0 | E19: =E$16*'Value of Statistical Life'!E19*Appropriate_Crash_Reduction_Factor -> 0 | F19: =F$16*'Value of Statistical Life'!F19*Appropriate_Crash_Reduction_Factor -> 0 | G19: =G$16*'Value of Statistical Life'!G19*Appropriate_Crash_Reduction_Factor -> 0 | H19: =H$16*'Value of Statistical Life'!H19*Appropriate_Crash_Reduction_Factor -> 0 | I19: =I$16*'Value of Statistical Life'!I19*Appropriate_Crash_Reduction_Factor -> 0 | J19: 0 | M19: 2033 | R19: 0
A20: AIS 3 | B20: Serious | D20: =D$16*'Value of Statistical Life'!D20*Appropriate_Crash_Reduction_Factor -> 0 | E20: =E$16*'Value of Statistical Life'!E20*Appropriate_Crash_Reduction_Factor -> 0 | F20: =F$16*'Value of Statistical Life'!F20*Appropriate_Crash_Reduction_Factor -> 0 | G20: =G$16*'Value of Statistical Life'!G20*Appropriate_Crash_Reduction_Factor -> 0 | H20: =H$16*'Value of Statistical Life'!H20*Appropriate_Crash_Reduction_Factor -> 0 | I20: =I$16*'Value of Statistical Life'!I20*Appropriate_Crash_Reduction_Factor -> 0 | J20: 0 | M20: 2034 | R20: 0
A21: AIS 4 | B21: Severe | D21: =D$16*'Value of Statistical Life'!D21*Appropriate_Crash_Reduction_Factor -> 0 | E21: =E$16*'Value of Statistical Life'!E21*Appropriate_Crash_Reduction_Factor -> 0 | F21: =F$16*'Value of Statistical Life'!F21*Appropriate_Crash_Reduction_Factor -> 0 | G21: =G$16*'Value of Statistical Life'!G21*Appropriate_Crash_Reduction_Factor -> 0 | H21: =H$16*'Value of Statistical Life'!H21*Appropriate_Crash_Reduction_Factor -> 0 | I21: =I$16*'Value of Statistical Life'!I21*Appropriate_Crash_Reduction_Factor -> 0 | J21: 0 | M21: =M20+1 -> 2035 | O21: =O20*(1+IFERROR(_2025_2040_V_C_Growth,_2018_2040_V_C_Growth)) ->  | Q21: =Q20*(1+N21*P21) ->  | R21: 0
A22: AIS 5 | B22: Critical | D22: =D$16*'Value of Statistical Life'!D22*Appropriate_Crash_Reduction_Factor -> 0 | E22: =E$16*'Value of Statistical Life'!E22*Appropriate_Crash_Reduction_Factor -> 0 | F22: =F$16*'Value of Statistical Life'!F22*Appropriate_Crash_Reduction_Factor -> 0 | G22: =G$16*'Value of Statistical Life'!G22*Appropriate_Crash_Reduction_Factor -> 0 | H22: =H$16*'Value of Statistical Life'!H22*Appropriate_Crash_Reduction_Factor -> 0 | I22: =I$16*'Value of Statistical Life'!I22*Appropriate_Crash_Reduction_Factor -> 0 | J22: 0 | M22: =M21+1 -> 2036 | R22: 0
A23: AIS 6 | B23: Unsurvivable | D23: =D$16*'Value of Statistical Life'!D23*Appropriate_Crash_Reduction_Factor -> 0 | E23: =E$16*'Value of Statistical Life'!E23*Appropriate_Crash_Reduction_Factor -> 0 | F23: =F$16*'Value of Statistical Life'!F23*Appropriate_Crash_Reduction_Factor -> 0 | G23: =G$16*'Value of Statistical Life'!G23*Appropriate_Crash_Reduction_Factor -> 0 | H23: =H$16*'Value of Statistical Life'!H23*Appropriate_Crash_Reduction_Factor -> 0 | I23: =I$16*'Value of Statistical Life'!I23*Appropriate_Crash_Reduction_Factor -> 0 | J23: 0 | M23: 2037 | R23: 0
M24: 2038 | R24: 0
M25: 2039 | R25: 0
M26: 2040 | R26: 0
M27: 2041 | R27: 0
M28: 2042 | R28: 0
M29: 2043 | R29: 0
M30: 2044 | Q30: =Q29*(1+N30*P30) ->  | R30: 0
M31: 2045 | R31: 0
M32: 2046 | Q32: =Q31*(1+N32*P32) ->  | R32: 0
M33: 2047 | R33: 0
M34: 2048 | R34: 0
M35: 2049 | R35: 0
M36: 2050 | R36: 0

Sheet Assumed Values
B2: 2015-2018 TIP Call For Projects - Benefit-Cost Analysis Assumptions*
B4: Common Values:
B5: Base Year for Analysis | C5: 2015
B6: Real Discount Rate | C6: 3% and 7%
B7: Historic Capital Costs Nominal-to-Real Conversion Rates | C7: See "GDP Deflators" tab
B8: Future Capital Costs Nominal-to-Real Conversion Rate | C8: ='GDP Deflators'!P5-1 -> 0.02083207357
B10: Safety Analysis Values:
B11: Value of Statistical Life (VSL), 2015 $ | C11: ='Value of Statistical Life'!F11 -> 9587302.726
B12: Values for non-fatal injuries provided in "Value of Statistical Life" tab.
B14: Delay Analysis Values:
B15: Value of Travel Time (VoTT), 2015 $ | C15: ='Value of Travel Time'!D21 -> 16.1
B16: Real wage growth rate | C16: 0.012
B18: Emissions Reduction Values:
B19: Volatile Organic Compounds (VOCs), $ / metric ton (2015 $) | C19: ='Value of Emissions'!D4 -> 2083.154147
B20: Nitrogen oxides (NOx), $ / metric ton (2015 $) | C20: ='Value of Emissions'!D5 -> 8208.60691
B21: VOC emissions factor, Ped/Bike Projects Only (g/VMT) | C21: =(0.267383+0.37942)/2 -> 0.3234015
B22: NOx emissions factor, Ped/Bike Projects Only (g/VMT) | C22: =(0.183428+0.198698)/2 -> 0.191063
B23: Applicable Project Life | C23: See Texas Guide to Accepted Mobile Source Emission Reduction Strategies (MOSER), page A.8.9

Sheet Value of Travel Time
B2: Person Trips by Purpose, H-GAC Regional Travel Demand Model (2040 RTP - 2010 Census Data & Household Survey)
B4: Home | C4: Work | D4: 2792941 | E4: =D4/D$12 -> 0.130183467 | G4: Non-Work | H4: =SUMIF($C$4:$C$11,G4,$E$4:$E$11) -> 0.7441361201
B5: Home | C5: Non-Work | D5: 10901839 | E5: =D5/D$12 -> 0.5081522302 | G5: Work | H5: =SUMIF($C$4:$C$11,G5,$E$4:$E$11) -> 0.2193383725
B6: Non-Home | C6: Work | D6: 1856330 | E6: 0.08652652359 | G6: Truck | H6: =SUMIF($C$4:$C$11,G6,$E$4:$E$11) -> 0.03652550746
B7: Non-Home | C7: Non-Work | D7: 4856431 | E7: 0.226366051 | H7: =SUM(H4:H6) -> 1
B8: Cargo | C8: Truck | D8: 101057 | E8: 0.004710429123
B9: Service | C9: Truck | D9: 682557 | E9: 0.03181507833
B10: Taxi | C10: Work | D10: 56389 | E10: 0.002628381882
B11: External Auto | C11: Non-Work | D11: 206340 | E11: 0.009617838896
D12: =SUM(D4:D11) -> 21453884 | E12: 1
B15: Value of Travel Time, TIGER BCA Resource Guide (2014)
C17: 2013 $ per person-hour) | D17: 2015 $ per person-hour)
B18: Personal | C18: 12.42 | D18: =C18*(1+'Assumed Values'!$C$16)^(2015-2013) -> 12.71986848
B19: Business | C19: 25.23 | D19: =C19*(1+'Assumed Values'!$C$16)^(2015-2013) -> 25.83915312
B20: Truck | C20: 25.75 | D20: =C20*(1+'Assumed Values'!$C$16)^(2015-2013) -> 26.371708
B21: Weighted Average: | C21: =ROUND(SUMPRODUCT(C18:C20,H4:H6),2) -> 15.72 | D21: =ROUND(SUMPRODUCT(D18:D20,H4:H6),2) -> 16.1

Sheet Value of Statistical Life
B2: Value of Injuries, TIGER BCA Resource Guide (2014)
B4: AIS Level | C4: Severity | D4: Fraction of VSL | E4: Unit value ($2013) | F4: Unit value ($2015)
B5: AIS 0 | C5: No Injuries | D5: 0 | E5: 0 | F5: =E5*(1+'Assumed Values'!$C$8)^(2015-2013) -> 0
B6: AIS 1 | C6: Minor | D6: 0.003 | E6: 27600 | F6: =E6*(1+'Assumed Values'!$C$8)^(2015-2013) -> 28761.90818
B7: AIS 2 | C7: Moderate | D7: 0.047 | E7: 432400 | F7: =E7*(1+'Assumed Values'!$C$8)^(2015-2013) -> 450603.2281
B8: AIS 3 | C8: Serious | D8: 0.105 | E8: 966000 | F8: =E8*(1+'Assumed Values'!$C$8)^(2015-2013) -> 1006666.786
B9: AIS 4 | C9: Severe | D9: 0.266 | E9: 2447200 | F9: =E9*(1+'Assumed Values'!$C$8)^(2015-2013) -> 2550222.525
B10: AIS 5 | C10: Critical | D10: 0.593 | E10: 5455600 | F10: =E10*(1+'Assumed Values'!$C$8)^(2015-2013) -> 5685270.517
B11: AIS 6 | C11: Unsurvivable | D11: 1 | E11: 9200000 | F11: =E11*(1+'Assumed Values'!$C$8)^(2015-2013) -> 9587302.726
B14: CRIS Data Conversion to AIS, TIGER BCA Resource Guide (2014)
B16: AIS Level | C16: Severity | D16: Death_Cnt | E16: Incap_Injry_Cnt | F16: Nonincap_Injry_Cnt | G16: Poss_Injry_Cnt | H16: Non_Injry_Cnt | I16: Unkn_Injry_Cnt
B17: AIS 0 | C17: No Injuries | D17: 0 | E17: 0.03437 | F17: 0.08347 | G17: 0.23437 | H17: 0.92534 | I17: 0.43676
B18: AIS 1 | C18: Minor | D18: 0 | E18: 0.55449 | F18: 0.76843 | G18: 0.68946 | H18: 0.07257 | I18: 0.41739
B19: AIS 2 | C19: Moderate | D19: 0 | E19: 0.20908 | F19: 0.10898 | G19: 0.06391 | H19: 0.00198 | I19: 0.08872
B20: AIS 3 | C20: Serious | D20: 0 | E20: 0.14437 | F20: 0.03191 | G20: 0.01071 | H20: 8e-05 | I20: 0.04817
B21: AIS 4 | C21: Severe | D21: 0 | E21: 0.03986 | F21: 0.0062 | G21: 0.00142 | H21: 0 | I21: 0.00617
B22: AIS 5 | C22: Critical | D22: 0 | E22: 0.01783 | F22: 0.00101 | G22: 0.00013 | H22: 3e-05 | I22: 0.00279
B23: AIS 6 | C23: Unsurvivable | D23: 1 | E23: 0 | F23: 0 | G23: 0 | H23: 0 | I23: 0
B24: Sum(Prob) | D24: =SUM(D17:D23) -> 1 | E24: 1 | F24: 1 | G24: 1 | H24: 1 | I24: 1

Sheet Value of Emissions
B1: Value of Emissions, TIGER BCA Resource Guide
B3: Emission Type | C3: $ / metric ton ($2013) | D3: $ / metric ton ($2015)
B4: Volatile Organic Compounds (VOCs) | C4: 1999 | D4: =C4*(1+'Assumed Values'!$C$8)^(2015-2013) -> 2083.154147
B5: Nitrogen oxides (NOx) | C5: 7877 | D5: =C5*(1+'Assumed Values'!$C$8)^(2015-2013) -> 8208.60691

Sheet GDP Deflators
A2: GDP Deflators
B3: 2000 | C3: 2001 | D3: 2002 | E3: 2003 | F3: 2004 | G3: 2005 | H3: 2006 | I3: 2007 | J3: 2008 | K3: 2009 | L3: 2010 | M3: 2011 | N3: 2012 | O3: 2013 | P3: 10 Yr Avg
A4: Gross domestic product | B4: 81.891 | C4: 83.766 | D4: 85.054 | E4: 86.754 | F4: 89.132 | G4: 91.991 | H4: 94.818 | I4: 97.335 | J4: 99.236 | K4: 100 | L4: 101.211 | M4: 103.199 | N4: 105.002 | O4: 106.588
A5: Deflator to Next Year | B5: =C4/B4 -> 1.022896289 | C5: 1.015376167 | D5: 1.019987302 | E5: 1.02741084 | F5: 1.032076022 | G5: 1.030731267 | H5: 1.026545593 | I5: =J4/I4 -> 1.019530487 | J5: =K4/J4 -> 1.007698819 | K5: 1.01211 | L5: 1.019642134 | M5: 1.0174711 | N5: 1.015104474 | P5: =AVERAGE(E5:N5) -> 1.020832074
A6: Deflator to 2012 | B6: =$N4/B4 -> 1.282216605 | C6: 1.253515746 | D6: 1.234533355 | E6: 1.210341886 | F6: 1.178050532 | G6: 1.141437749 | H6: 1.107405767 | I6: =$N4/I4 -> 1.078769199 | J6: =$N4/J4 -> 1.058103914 | K6: 1.05002 | L6: 1.037456403 | M6: 1.0174711 | N6: 1 | O6: =$N4/O4 -> 0.9851202762
A8: Bureau of Economic Analysis, See Table 1.1.9. Implicit Price Deflators for Gross Domestic Product
A9: http://www.bea.gov/iTable/iTable.cfm?ReqID=9&step=1

Sheet CRASH SUM
B2: Preventable Crash History | C2: =D2-1 -> 2011 | D2: =E2-1 -> 2012 | E2: =MAX(INDEX(CRASH!1:1048576,,MATCH("Year",CRASH!1:1,0))) -> 2013
B3: Death_Cnt | C3: =SUMIFS(INDEX(CRASH!$1:$1048576,,MATCH($B3,CRASH!$1:$1,0)),INDEX(CRASH!$1:$1048576,,MATCH("Year",CRASH!$1:$1,0)),C$2) -> 0 | D3: =SUMIFS(INDEX(CRASH!$1:$1048576,,MATCH($B3,CRASH!$1:$1,0)),INDEX(CRASH!$1:$1048576,,MATCH("Year",CRASH!$1:$1,0)),D$2) -> 0 | E3: =SUMIFS(INDEX(CRASH!$1:$1048576,,MATCH($B3,CRASH!$1:$1,0)),INDEX(CRASH!$1:$1048576,,MATCH("Year",CRASH!$1:$1,0)),E$2) -> 0
B4: Incap_Injry_Cnt | C4: =SUMIFS(INDEX(CRASH!$1:$1048576,,MATCH($B4,CRASH!$1:$1,0)),INDEX(CRASH!$1:$1048576,,MATCH("Year",CRASH!$1:$1,0)),C$2) -> 0 | D4: =SUMIFS(INDEX(CRASH!$1:$1048576,,MATCH($B4,CRASH!$1:$1,0)),INDEX(CRASH!$1:$1048576,,MATCH("Year",CRASH!$1:$1,0)),D$2) -> 0 | E4: =SUMIFS(INDEX(CRASH!$1:$1048576,,MATCH($B4,CRASH!$1:$1,0)),INDEX(CRASH!$1:$1048576,,MATCH("Year",CRASH!$1:$1,0)),E$2) -> 1
B5: Nonincap_Injry_Cnt | C5: =SUMIFS(INDEX(CRASH!$1:$1048576,,MATCH($B5,CRASH!$1:$1,0)),INDEX(CRASH!$1:$1048576,,MATCH("Year",CRASH!$1:$1,0)),C$2) -> 0 | D5: =SUMIFS(INDEX(CRASH!$1:$1048576,,MATCH($B5,CRASH!$1:$1,0)),INDEX(CRASH!$1:$1048576,,MATCH("Year",CRASH!$1:$1,0)),D$2) -> 3 | E5: =SUMIFS(INDEX(CRASH!$1:$1048576,,MATCH($B5,CRASH!$1:$1,0)),INDEX(CRASH!$1:$1048576,,MATCH("Year",CRASH!$1:$1,0)),E$2) -> 0
B6: Poss_Injry_Cnt | C6: =SUMIFS(INDEX(CRASH!$1:$1048576,,MATCH($B6,CRASH!$1:$1,0)),INDEX(CRASH!$1:$1048576,,MATCH("Year",CRASH!$1:$1,0)),C$2) -> 0 | D6: =SUMIFS(INDEX(CRASH!$1:$1048576,,MATCH($B6,CRASH!$1:$1,0)),INDEX(CRASH!$1:$1048576,,MATCH("Year",CRASH!$1:$1,0)),D$2) -> 0 | E6: =SUMIFS(INDEX(CRASH!$1:$1048576,,MATCH($B6,CRASH!$1:$1,0)),INDEX(CRASH!$1:$1048576,,MATCH("Year",CRASH!$1:$1,0)),E$2) -> 0
B7: Non_Injry_Cnt | C7: =SUMIFS(INDEX(CRASH!$1:$1048576,,MATCH($B7,CRASH!$1:$1,0)),INDEX(CRASH!$1:$1048576,,MATCH("Year",CRASH!$1:$1,0)),C$2) -> 2 | D7: =SUMIFS(INDEX(CRASH!$1:$1048576,,MATCH($B7,CRASH!$1:$1,0)),INDEX(CRASH!$1:$1048576,,MATCH("Year",CRASH!$1:$1,0)),D$2) -> 0 | E7: =SUMIFS(INDEX(CRASH!$1:$1048576,,MATCH($B7,CRASH!$1:$1,0)),INDEX(CRASH!$1:$1048576,,MATCH("Year",CRASH!$1:$1,0)),E$2) -> 8
B8: Unkn_Injry_Cnt | C8: =SUMIFS(INDEX(CRASH!$1:$1048576,,MATCH($B8,CRASH!$1:$1,0)),INDEX(CRASH!$1:$1048576,,MATCH("Year",CRASH!$1:$1,0)),C$2) -> 0 | D8: =SUMIFS(INDEX(CRASH!$1:$1048576,,MATCH($B8,CRASH!$1:$1,0)),INDEX(CRASH!$1:$1048576,,MATCH("Year",CRASH!$1:$1,0)),D$2) -> 0 | E8: =SUMIFS(INDEX(CRASH!$1:$1048576,,MATCH($B8,CRASH!$1:$1,0)),INDEX(CRASH!$1:$1048576,,MATCH("Year",CRASH!$1:$1,0)),E$2) -> 0
B10: Blank for reset… | C10: Year 1 | D10: Year 2 | E10: Year 3
C11: 0 | D11: 0 | E11: 0
C12: 0 | D12: 0 | E12: 0
C13: 0 | D13: 0 | E13: 0
C14: 0 | D14: 0 | E14: 0
C15: 0 | D15: 0 | E15: 0
C16: 0 | D16: 0 | E16: 0
